fUST/lending_fUST_20250702
["ID","MTS","AMOUNT","RATE_DAILY","PERIOD"]
[369049674,1751445059351,-460.0,0.00017534,2]
[369049675,1751445059361,-477.02,0.00017534,2]
[369049676,1751445059372,-460.0,0.00017534,2]
[369049677,1751445059382,-460.0,0.00017534,2]
[369049678,1751445059391,-1028.48,0.00017534,2]
[369049679,1751445059401,-460.0,0.00017534,2]
[369049680,1751445059410,-460.0,0.00017534,2]
[369049681,1751445059419,-460.0,0.00017534,2]
[369049682,1751445059428,-1809.02,0.00017534,2]
[369049683,1751445059438,-460.0,0.00017534,2]
[369049684,1751445059447,-460.0,0.00017534,2]
[369049685,1751445059456,-460.0,0.00017534,2]
[369049686,1751445059466,-764.79,0.00017534,2]
[369049687,1751445059475,-460.0,0.00017534,2]
[369049688,1751445059484,-637.32,0.00017534,2]
[369049689,1751445059493,-460.0,0.00017534,2]
[369049690,1751445059503,-460.0,0.00017534,2]
[369049691,1751445059512,-460.0,0.00017534,2]
[369049692,1751445059521,-549.97,0.00017534,2]
[369049693,1751445059530,-460.0,0.00017534,2]
[369049694,1751445059539,-460.0,0.00017534,2]
[369049695,1751445059548,-3087.48,0.00017534,2]
[369049696,1751445059558,-460.0,0.00017534,2]
[369049697,1751445059567,-460.0,0.00017534,2]
[369049698,1751445059576,-460.0,0.00017534,2]
[369049699,1751445059586,-801.86,0.00017534,2]
[369049700,1751445059595,-460.0,0.00017534,2]
[369049701,1751445059604,-495.84,0.00017534,2]
[369049702,1751445059614,-929.01,0.00017534,2]
[369049703,1751445059624,-505.94,0.00017534,2]
[369049704,1751445059633,-460.0,0.00017534,2]
[369049705,1751445059642,-3667.71,0.00017534,2]
[369049706,1751445059651,-460.0,0.00017534,2]
[369049707,1751445059661,-765.47,0.00017534,2]
[369049708,1751445059671,-460.0,0.00017534,2]
[369049709,1751445059680,-1714.9,0.00017534,2]
[369049710,1751445059691,-1363.74,0.00017534,2]
[369049711,1751445059701,-460.0,0.00017534,2]
[369049712,1751445059712,-460.0,0.00017534,2]
[369049713,1751445059721,-460.0,0.00017534,2]
[369049714,1751445059731,-460.0,0.00017534,2]
[369049715,1751445059743,-460.0,0.00017534,2]
[369049716,1751445059752,-2367.93,0.00017534,2]
[369049717,1751445059762,-732.17,0.00017534,2]
[369049718,1751445059773,-460.0,0.00017534,2]
[369049719,1751445059784,-460.0,0.00017534,2]
[369049720,1751445059793,-849.76,0.00017534,2]
[369049721,1751445059803,-460.0,0.00017534,2]
[369049722,1751445059812,-854.21,0.00017534,2]
[369049723,1751445059822,-721.5,0.00017534,2]
[369049724,1751445059831,-460.0,0.00017534,2]
[369049725,1751445059840,-460.0,0.00017534,2]
[369049726,1751445059849,-1041.46,0.00017534,2]
[369049727,1751445059859,-7003.26,0.00017534,2]
[369049728,1751445059868,-805.0,0.00017534,2]
[369049729,1751445059877,-460.0,0.00017534,2]
[369049730,1751445059887,-460.0,0.00017534,2]
[369049731,1751445059897,-460.0,0.00017534,2]
[369049732,1751445059906,-460.0,0.00017534,2]
[369049733,1751445059915,-460.0,0.00017534,2]
[369049734,1751445059925,-622.83559072,0.0001754,2]
[369049735,1751445059934,-1500.0,0.00017568,2]
[369049736,1751445059943,-519.76312072,0.00017568,2]
[369049737,1751445059953,-506.39596448,0.00017568,2]
[369049738,1751445059962,-1500.0,0.00017568,2]
[369049739,1751445059971,-1500.0,0.00017568,2]
[369049740,1751445059981,-405.0,0.00017577,2]
[369049741,1751445059990,-151.0,0.00017593,2]
[369049742,1751445059999,-1421.646598,0.00017593,2]
[369049743,1751445060009,-1421.646598,0.00017593,2]
[369049744,1751445060019,-151.0,0.000176,2]
[369049745,1751445060028,-2030.71323212,0.000176,2]
[369049746,1751445060038,-207.45811927,0.000176,2]
[369049747,1751445060153,-405.0,0.00017665,2]
[369049748,1751445060163,-405.0,0.0001768,2]
[369049749,1751445060173,-1316.32,0.00017698,3]
[369049750,1751445060182,-215.0738,0.00017797,2]
[369049751,1751445060192,-588.82,0.00017798,3]
[369049752,1751445060201,-151.0,0.000178,2]
[369049753,1751445060210,-460.0,0.00017808,2]
[369049754,1751445060219,-460.0,0.00017808,2]
[369049755,1751445060230,-182.553769,0.00017808,2]
[369049756,1751445060240,-460.0,0.00017808,2]
[369049757,1751445060251,-288.5984559,0.00017808,2]
[369049758,1751445060260,-498.25,0.00017808,2]
[369049759,1751445060271,-460.0,0.00017808,2]
[369049760,1751445060281,-460.0,0.00017808,2]
[369049761,1751445060290,-151.0,0.00017808,2]
[369049762,1751445060299,-460.0,0.00017808,2]
[369049763,1751445060309,-460.0,0.00017808,2]
[369049764,1751445060318,-151.0,0.00017808,2]
[369049765,1751445060328,-238.651425,0.00017808,2]
[369049766,1751445060337,-151.0,0.00017808,2]
[369049767,1751445060347,-151.0,0.00017808,2]
[369049768,1751445060357,-460.0,0.00017808,2]
[369049769,1751445060367,-639.06,0.00017808,2]
[369049770,1751445060379,-151.0,0.00017808,2]
[369049771,1751445060389,-460.0,0.00017808,2]
[369049772,1751445060398,-460.0,0.00017808,2]
[369049773,1751445060408,-460.0,0.00017808,2]
[369049774,1751445060419,-558.439528,0.00017808,2]
[369049775,1751445060430,-558.439528,0.00017808,2]
[369049776,1751445060439,-151.0,0.00017808,2]
[369049777,1751445060451,-151.0,0.00017808,2]
[369049778,1751445060462,-460.0,0.00017808,2]
[369049779,1751445060472,-460.0,0.00017808,2]
[369049780,1751445060481,-460.0,0.00017808,2]
[369049781,1751445060491,-876.29,0.00017808,2]
[369049782,1751445060500,-642.52,0.00017808,2]
[369049783,1751445060509,-460.0,0.00017808,2]
[369049784,1751445060518,-460.0,0.00017808,2]
[369049785,1751445060527,-460.0,0.00017808,2]
[369049786,1751445060537,-460.0,0.00017808,2]
[369049787,1751445060546,-460.0,0.00017808,2]
[369049788,1751445060556,-548.91516801,0.00017808,2]
[369049789,1751445060565,-460.0,0.00017808,2]
[369049790,1751445060575,-460.0,0.00017808,2]
[369049791,1751445060584,-614.95,0.00017808,2]
[369049792,1751445060593,-460.0,0.00017808,2]
[369049793,1751445060602,-980.93,0.00017808,2]
[369049794,1751445060613,-460.0,0.00017808,2]
[369049795,1751445060623,-751.48,0.00017808,2]
[369049796,1751445060634,-460.0,0.00017808,2]
[369049797,1751445060644,-460.0,0.00017808,2]
[369049798,1751445060653,-460.0,0.00017808,2]
[369049799,1751445060661,-460.0,0.00017808,2]
[369049800,1751445060670,-469.98,0.00017808,2]
[369049801,1751445060679,-460.0,0.00017808,2]
[369049802,1751445060688,-151.0,0.00017808,2]
[369049803,1751445060697,-460.0,0.00017808,2]
[369049804,1751445060706,-705.341176,0.00017808,2]
[369049805,1751445060715,-460.0,0.00017808,2]
[369049806,1751445060725,-705.341176,0.00017808,2]
[369049807,1751445060734,-151.0,0.00017808,2]
[369049808,1751445060743,-460.0,0.00017808,2]
[369049809,1751445060753,-460.0,0.00017808,2]
[369049810,1751445060762,-460.0,0.00017808,2]
[369049811,1751445060772,-460.0,0.00017808,2]
[369049812,1751445060781,-151.0,0.00017808,2]
[369049813,1751445060790,-460.0,0.00017808,2]
[369049814,1751445060799,-471.973154,0.00017808,2]
[369049815,1751445060809,-471.973154,0.00017808,2]
[369049816,1751445060818,-460.0,0.00017808,2]
[369049817,1751445060828,-460.0,0.00017808,2]
[369049818,1751445060838,-460.0,0.00017808,2]
[369049819,1751445060846,-444.66118915,0.00017808,2]
[369049820,1751445060855,-151.0,0.00017808,2]
[369049821,1751445060864,-460.0,0.00017808,2]
[369049822,1751445060874,-460.0,0.00017808,2]
[369049823,1751445060884,-151.0,0.00017808,2]
[369049824,1751445060893,-460.0,0.00017808,2]
[369049825,1751445060902,-476.11,0.00017808,2]
[369049826,1751445060912,-473.359982,0.00017808,2]
[369049827,1751445060921,-460.0,0.00017808,2]
[369049828,1751445060930,-473.359982,0.00017808,2]
[369049829,1751445060940,-460.0,0.00017808,2]
[369049830,1751445060948,-460.0,0.00017808,2]
[369049831,1751445060958,-485.39895,0.00017808,2]
[369049832,1751445060968,-641.61,0.00017808,2]
[369049833,1751445060977,-460.0,0.00017808,2]
[369049834,1751445060986,-485.39895,0.00017808,2]
[369049835,1751445060995,-1766.89,0.00017808,2]
[369049836,1751445061004,-469.64481405,0.00017808,2]
[369049837,1751445061013,-464.87353107,0.00017808,2]
[369049838,1751445061022,-506.20617352,0.00017808,2]
[369049839,1751445061030,-460.0,0.00017808,2]
[369049840,1751445061039,-460.0,0.00017808,2]
[369049841,1751445061048,-826.15,0.00017808,2]
[369049842,1751445061057,-460.0,0.00017808,2]
[369049843,1751445061066,-480.20217855,0.00017808,2]
[369049844,1751445061075,-489.59377957,0.00017808,2]
[369049845,1751445061085,-460.0,0.00017808,2]
[369049846,1751445061095,-1047.3,0.00017808,2]
[369049847,1751445061105,-460.0,0.00017808,2]
[369049848,1751445061114,-460.0,0.00017808,2]
[369049849,1751445061123,-978.89,0.00017808,2]
[369049850,1751445061132,-496.66,0.00017808,2]
[369049851,1751445061142,-440.0,0.00017808,2]
[369049852,1751445061151,-460.0,0.00017808,2]
[369049853,1751445061160,-2133.99,0.00017808,2]
[369049854,1751445061170,-460.0,0.00017808,2]
[369049855,1751445061179,-1265.38,0.00017808,2]
[369049856,1751445061189,-727.25,0.00017808,2]
[369049857,1751445061198,-539.69,0.00017808,2]
[369049858,1751445061208,-460.0,0.00017808,2]
[369049859,1751445061218,-1897.91,0.00017808,2]
[369049860,1751445061228,-460.0,0.00017808,2]
[369049861,1751445061238,-460.0,0.00017808,2]
[369049862,1751445061248,-577.38,0.00017808,2]
[369049863,1751445061258,-563.23,0.00017808,2]
[369049864,1751445061268,-460.0,0.00017808,2]
[369049865,1751445061278,-2115.45,0.00017808,2]
[369049866,1751445061288,-516.01,0.00017808,2]
[369049867,1751445061298,-460.0,0.00017808,2]
[369049868,1751445061308,-557.01,0.00017808,2]
[369049869,1751445061318,-460.0,0.00017808,2]
[369049870,1751445061328,-460.0,0.00017808,2]
[369049871,1751445061339,-3803.15,0.00017808,2]
[369049872,1751445061349,-460.0,0.00017808,2]
[369049873,1751445061359,-460.0,0.00017808,2]
[369049874,1751445061368,-460.0,0.00017808,2]
[369049875,1751445061381,-460.0,0.00017808,2]
[369049876,1751445061391,-5111.31,0.00017808,2]
[369049877,1751445061400,-829.34,0.00017808,2]
[369049878,1751445061411,-780.82,0.00017808,2]
[369049879,1751445061420,-5072.13,0.00017808,2]
[369049880,1751445061431,-460.0,0.00017808,2]
[369049881,1751445061441,-1087.5,0.00017808,2]
[369049882,1751445061450,-460.0,0.00017808,2]
[369049883,1751445061461,-718.56,0.00017808,2]
[369049884,1751445061471,-1714.12,0.00017808,2]
[369049885,1751445061481,-1401.55,0.00017808,2]
[369049886,1751445061491,-460.0,0.00017808,2]
[369049887,1751445061500,-460.0,0.00017808,2]
[369049888,1751445061511,-151.0,0.00017808,2]
[369049889,1751445061522,-460.0,0.00017808,2]
[369049890,1751445061532,-460.0,0.00017808,2]
[369049891,1751445061541,-669.72,0.00017808,2]
[369049892,1751445061551,-1605.73,0.00017808,2]
[369049893,1751445061561,-461.84,0.00017808,2]
[369049894,1751445061571,-890.25,0.00017808,2]
[369049895,1751445061582,-3517.17,0.00017808,2]
[369049896,1751445061592,-460.0,0.00017808,2]
[369049897,1751445061602,-460.0,0.00017808,2]
[369049898,1751445061611,-460.0,0.00017808,2]
[369049899,1751445061621,-759.61,0.00017808,2]
[369049900,1751445061631,-570.4,0.00017808,2]
[369049901,1751445061640,-882.98,0.00017808,2]
[369049902,1751445061650,-1815.57,0.00017808,2]
[369049903,1751445061660,-460.0,0.00017808,2]
[369049904,1751445061669,-151.0,0.00017808,2]
[369049905,1751445061679,-460.0,0.00017808,2]
[369049906,1751445061688,-520.1119055,0.00017808,2]
[369049907,1751445061697,-1073.74,0.00017808,2]
[369049908,1751445061707,-484.61,0.00017808,2]
[369049909,1751445061717,-460.0,0.00017808,2]
[369049910,1751445061728,-153.822867,0.00017808,2]
[369049911,1751445061739,-460.0,0.00017808,2]
[369049912,1751445061750,-460.0,0.00017808,2]
[369049913,1751445061760,-1129.77,0.00017808,2]
[369049914,1751445061770,-460.0,0.00017808,2]
[369049915,1751445061780,-460.0,0.00017808,2]
[369049916,1751445061790,-361.49199315,0.00017808,2]
[369049917,1751445061801,-460.0,0.00017808,2]
[369049918,1751445061810,-854.14,0.00017808,2]
[369049919,1751445061821,-460.0,0.00017808,2]
[369049920,1751445061831,-1100.11,0.00017808,2]
[369049921,1751445061841,-460.0,0.00017808,2]
[369049922,1751445061852,-667.52,0.00017808,2]
[369049923,1751445061872,-460.0,0.00017808,2]
[369049924,1751445061893,-3038.86,0.00017808,2]
[369049925,1751445061903,-460.0,0.00017808,2]
[369049926,1751445061914,-477.02,0.00017808,2]
[369049927,1751445061924,-460.0,0.00017808,2]
[369049928,1751445061934,-1028.48,0.00017808,2]
[369049929,1751445061944,-460.0,0.00017808,2]
[369049930,1751445061953,-460.0,0.00017808,2]
[369049931,1751445061964,-460.0,0.00017808,2]
[369049932,1751445061974,-151.0,0.00017808,2]
[369049933,1751445061984,-1809.02,0.00017808,2]
[369049934,1751445061995,-460.0,0.00017808,2]
[369049935,1751445062005,-151.266379,0.00017808,2]
[369049936,1751445062015,-460.0,0.00017808,2]
[369049937,1751445062025,-460.0,0.00017808,2]
[369049938,1751445062035,-764.79,0.00017808,2]
[369049939,1751445062046,-637.32,0.00017808,2]
[369049940,1751445062056,-460.0,0.00017808,2]
[369049941,1751445062066,-460.0,0.00017808,2]
[369049942,1751445062077,-549.97,0.00017808,2]
[369049943,1751445062089,-460.0,0.00017808,2]
[369049944,1751445062099,-460.0,0.00017808,2]
[369049945,1751445062111,-3087.48,0.00017808,2]
[369049946,1751445062121,-460.0,0.00017808,2]
[369049947,1751445062131,-460.0,0.00017808,2]
[369049948,1751445062142,-460.0,0.00017808,2]
[369049949,1751445062152,-801.86,0.00017808,2]
[369049950,1751445062161,-460.0,0.00017808,2]
[369049951,1751445062173,-495.84,0.00017808,2]
[369049952,1751445062287,-929.01,0.00017808,2]
[369049953,1751445062297,-505.94,0.00017808,2]
[369049954,1751445062308,-363.24944615,0.00017808,2]
[369049955,1751445062317,-3667.71,0.00017808,2]
[369049956,1751445062327,-460.0,0.00017808,2]
[369049957,1751445062337,-765.47,0.00017808,2]
[369049958,1751445062347,-460.0,0.00017808,2]
[369049959,1751445062356,-1714.9,0.00017808,2]
[369049960,1751445062366,-1363.74,0.00017808,2]
[369049961,1751445062381,-460.0,0.00017808,2]
[369049962,1751445062390,-460.0,0.00017808,2]
[369049963,1751445062400,-251.70973992,0.00017808,2]
[369049964,1751445062409,-312.87014798,0.00017808,2]
[369049965,1751445062421,-460.0,0.00017808,2]
[369049966,1751445062431,-2367.93,0.00017808,2]
[369049967,1751445062441,-732.17,0.00017808,2]
[369049968,1751445062451,-460.0,0.00017808,2]
[369049969,1751445062462,-460.0,0.00017808,2]
[369049970,1751445062472,-849.76,0.00017808,2]
[369049971,1751445062481,-481.13202954,0.00017808,2]
[369049972,1751445062491,-854.21,0.00017808,2]
[369049973,1751445062501,-721.5,0.00017808,2]
[369049974,1751445062511,-460.0,0.00017808,2]
[369049975,1751445062520,-460.0,0.00017808,2]
[369049976,1751445062530,-1041.46,0.00017808,2]
[369049977,1751445062540,-151.0,0.00017808,2]
[369049978,1751445062550,-7003.26,0.00017808,2]
[369049979,1751445062560,-805.0,0.00017808,2]
[369049980,1751445062572,-460.0,0.00017808,2]
[369049981,1751445062582,-306.666669,0.00017808,2]
[369049982,1751445062591,-460.0,0.00017808,2]
[369049983,1751445062601,-460.0,0.00017808,2]
[369049984,1751445062611,-460.0,0.00017808,2]
[369049985,1751445062622,-306.666669,0.00017808,2]
[369049986,1751445062632,-460.0,0.00017808,2]
[369049987,1751445062642,-420.0,0.00017855,2]
[369049988,1751445062652,-420.0,0.00017855,2]
[369049989,1751445062663,-1500.0,0.00017868,2]
[369049990,1751445062673,-601.64571274,0.0001789,2]
[369049991,1751445062684,-151.0,0.000179,2]
[369049992,1751445062693,-1680.0,0.00017944,2]
[369049993,1751445062703,-286.18,0.00018,2]
[369049994,1751445062713,-286.18,0.00018,2]
[369049995,1751445062723,-286.18,0.00018,2]
[369049996,1751445062733,-152484.44237062,0.00018,2]
[369049997,1751445062743,-7549.41199479,0.00018,2]
[369049998,1751445062752,-16752.85426476,0.00018,2]
[369049999,1751445062763,-151.0,0.00018,2]
[369050000,1751445062775,-405.0,0.00018044,2]
[369050001,1751445062785,-5000.0,0.00018072,2]
[369050002,1751445062795,-460.0,0.00018082,2]
[369050003,1751445062805,-182.553769,0.00018082,2]
[369050004,1751445062814,-498.25,0.00018082,2]
[369050005,1751445062824,-460.0,0.00018082,2]
[369050006,1751445062834,-151.0,0.00018082,2]
[369050007,1751445062844,-151.0,0.00018082,2]
[369050008,1751445062854,-153.642016,0.00018082,2]
[369050009,1751445062863,-151.0,0.00018082,2]
[369050010,1751445062873,-153.642016,0.00018082,2]
[369050011,1751445062882,-151.0,0.00018082,2]
[369050012,1751445062891,-749.472877,0.00018082,2]
[369050013,1751445062901,-749.472877,0.00018082,2]
[369050014,1751445062910,-460.0,0.00018082,2]
[369050015,1751445062920,-151.0,0.00018082,2]
[369050016,1751445062930,-151.0,0.00018082,2]
[369050017,1751445062939,-416.53663309,0.00018082,2]
[369050018,1751445062950,-460.0,0.00018082,2]
[369050019,1751445062960,-151.470099,0.00018082,2]
[369050020,1751445062970,-273.177028,0.00018082,2]
[369050021,1751445062979,-273.177028,0.00018082,2]
[369050022,1751445062989,-336.306551,0.00018082,2]
[369050023,1751445062998,-460.0,0.00018082,2]
[369050024,1751445063008,-336.306551,0.00018082,2]
[369050025,1751445063018,-639.06,0.00018082,2]
[369050026,1751445063028,-460.0,0.00018082,2]
[369050027,1751445063038,-460.0,0.00018082,2]
[369050028,1751445063049,-460.0,0.00018082,2]
[369050029,1751445063060,-460.0,0.00018082,2]
[369050030,1751445063070,-460.0,0.00018082,2]
[369050031,1751445063081,-876.29,0.00018082,2]
[369050032,1751445063091,-642.52,0.00018082,2]
[369050033,1751445063100,-460.0,0.00018082,2]
[369050034,1751445063109,-460.0,0.00018082,2]
[369050035,1751445063119,-460.0,0.00018082,2]
[369050036,1751445063130,-479.10899522,0.00018082,2]
[369050037,1751445063140,-460.0,0.00018082,2]
[369050038,1751445063150,-151.0,0.00018082,2]
[369050039,1751445063161,-460.0,0.00018082,2]
[369050040,1751445063171,-151.0,0.00018082,2]
[369050041,1751445063181,-614.95,0.00018082,2]
[369050042,1751445063191,-460.0,0.00018082,2]
[369050043,1751445063201,-980.93,0.00018082,2]
[369050044,1751445063211,-460.0,0.00018082,2]
[369050045,1751445063221,-751.48,0.00018082,2]
[369050046,1751445063231,-464.43605088,0.00018082,2]
[369050047,1751445063241,-460.0,0.00018082,2]
[369050048,1751445063251,-460.0,0.00018082,2]
[369050049,1751445063262,-291.94622379,0.00018082,2]
[369050050,1751445063272,-469.98,0.00018082,2]
[369050051,1751445063284,-460.0,0.00018082,2]
[369050052,1751445063294,-460.0,0.00018082,2]
[369050053,1751445063304,-460.0,0.00018082,2]
[369050054,1751445063313,-460.0,0.00018082,2]
[369050055,1751445063323,-467.81463015,0.00018082,2]
[369050056,1751445063334,-460.0,0.00018082,2]
[369050057,1751445063344,-585.64154796,0.00018082,2]
[369050058,1751445063353,-460.0,0.00018082,2]
[369050059,1751445063363,-460.0,0.00018082,2]
[369050060,1751445063376,-460.0,0.00018082,2]
[369050061,1751445063386,-151.0,0.00018082,2]
[369050062,1751445063396,-460.0,0.00018082,2]
[369050063,1751445063406,-460.0,0.00018082,2]
[369050064,1751445063416,-460.0,0.00018082,2]
[369050065,1751445063426,-476.11,0.00018082,2]
[369050066,1751445063437,-465.8413118,0.00018082,2]
[369050067,1751445063448,-460.0,0.00018082,2]
[369050068,1751445063459,-641.61,0.00018082,2]
[369050069,1751445063470,-460.0,0.00018082,2]
[369050070,1751445063480,-151.0,0.00018082,2]
[369050071,1751445063490,-1766.89,0.00018082,2]
[369050072,1751445063499,-151.0,0.00018082,2]
[369050073,1751445063510,-460.0,0.00018082,2]
[369050074,1751445063520,-460.0,0.00018082,2]
[369050075,1751445063530,-826.15,0.00018082,2]
[369050076,1751445063540,-460.0,0.00018082,2]
[369050077,1751445063550,-460.0,0.00018082,2]
[369050078,1751445063559,-1047.3,0.00018082,2]
[369050079,1751445063568,-460.0,0.00018082,2]
[369050080,1751445063578,-460.0,0.00018082,2]
[369050081,1751445063587,-978.89,0.00018082,2]
[369050082,1751445063598,-496.66,0.00018082,2]
[369050083,1751445063607,-460.0,0.00018082,2]
[369050084,1751445063617,-2133.99,0.00018082,2]
[369050085,1751445063628,-1265.38,0.00018082,2]
[369050086,1751445063638,-727.25,0.00018082,2]
[369050087,1751445063647,-539.69,0.00018082,2]
[369050088,1751445063656,-1897.91,0.00018082,2]
[369050089,1751445063665,-151.0,0.00018082,2]
[369050090,1751445063674,-577.38,0.00018082,2]
[369050091,1751445063684,-563.23,0.00018082,2]
[369050092,1751445063695,-460.0,0.00018082,2]
[369050093,1751445063705,-2115.45,0.00018082,2]
[369050094,1751445063714,-516.01,0.00018082,2]
[369050095,1751445063723,-460.0,0.00018082,2]
[369050096,1751445063732,-557.01,0.00018082,2]
[369050097,1751445063742,-460.0,0.00018082,2]
[369050098,1751445063752,-3803.15,0.00018082,2]
[369050099,1751445063761,-484.49307936,0.00018082,2]
[369050100,1751445063771,-460.0,0.00018082,2]
[369050101,1751445063780,-460.0,0.00018082,2]
[369050102,1751445063790,-460.0,0.00018082,2]
[369050103,1751445063799,-5111.31,0.00018082,2]
[369050104,1751445063808,-829.34,0.00018082,2]
[369050105,1751445063817,-780.82,0.00018082,2]
[369050106,1751445063827,-5072.13,0.00018082,2]
[369050107,1751445063836,-460.0,0.00018082,2]
[369050108,1751445063847,-1087.5,0.00018082,2]
[369050109,1751445063857,-460.0,0.00018082,2]
[369050110,1751445063867,-718.56,0.00018082,2]
[369050111,1751445063877,-1714.12,0.00018082,2]
[369050112,1751445063887,-1401.55,0.00018082,2]
[369050113,1751445063897,-460.0,0.00018082,2]
[369050114,1751445063906,-460.0,0.00018082,2]
[369050115,1751445063916,-151.0,0.00018082,2]
[369050116,1751445063927,-460.0,0.00018082,2]
[369050117,1751445063937,-460.0,0.00018082,2]
[369050118,1751445063947,-669.72,0.00018082,2]
[369050119,1751445063956,-1605.73,0.00018082,2]
[369050120,1751445063966,-461.84,0.00018082,2]
[369050121,1751445063975,-890.25,0.00018082,2]
[369050122,1751445063985,-3517.17,0.00018082,2]
[369050123,1751445063995,-460.0,0.00018082,2]
[369050124,1751445064006,-460.0,0.00018082,2]
[369050125,1751445064015,-151.29871405,0.00018082,2]
[369050126,1751445064024,-759.61,0.00018082,2]
[369050127,1751445064034,-570.4,0.00018082,2]
[369050128,1751445064043,-882.98,0.00018082,2]
[369050129,1751445064053,-1815.57,0.00018082,2]
[369050130,1751445064062,-460.0,0.00018082,2]
[369050131,1751445064072,-151.0,0.00018082,2]
[369050132,1751445064081,-460.0,0.00018082,2]
[369050133,1751445064093,-1073.74,0.00018082,2]
[369050134,1751445064102,-484.61,0.00018082,2]
[369050135,1751445064111,-460.0,0.00018082,2]
[369050136,1751445064121,-460.0,0.00018082,2]
[369050137,1751445064131,-460.0,0.00018082,2]
[369050138,1751445064141,-1129.77,0.00018082,2]
[369050139,1751445064151,-460.0,0.00018082,2]
[369050140,1751445064272,-460.0,0.00018082,2]
[369050141,1751445064283,-460.0,0.00018082,2]
[369050142,1751445064294,-854.14,0.00018082,2]
[369050143,1751445064304,-460.0,0.00018082,2]
[369050144,1751445064313,-460.0,0.00018082,2]
[369050145,1751445064324,-1100.11,0.00018082,2]
[369050146,1751445064334,-667.52,0.00018082,2]
[369050147,1751445064346,-1421.646598,0.00018082,2]
[369050148,1751445064357,-460.0,0.00018082,2]
[369050149,1751445064367,-1421.646598,0.00018082,2]
[369050150,1751445064382,-3038.86,0.00018082,2]
[369050151,1751445064392,-460.0,0.00018082,2]
[369050152,1751445064401,-477.02,0.00018082,2]
[369050153,1751445064411,-460.0,0.00018082,2]
[369050154,1751445064421,-1028.48,0.00018082,2]
[369050155,1751445064431,-460.0,0.00018082,2]
[369050156,1751445064442,-460.0,0.00018082,2]
[369050157,1751445064452,-460.0,0.00018082,2]
[369050158,1751445064462,-1809.02,0.00018082,2]
[369050159,1751445064473,-460.0,0.00018082,2]
[369050160,1751445064482,-460.0,0.00018082,2]
[369050161,1751445064492,-764.79,0.00018082,2]
[369050162,1751445064502,-637.32,0.00018082,2]
[369050163,1751445064512,-460.0,0.00018082,2]
[369050164,1751445064521,-160.97461352,0.00018082,2]
[369050165,1751445064531,-549.97,0.00018082,2]
[369050166,1751445064541,-460.0,0.00018082,2]
[369050167,1751445064551,-460.0,0.00018082,2]
[369050168,1751445064560,-3087.48,0.00018082,2]
[369050169,1751445064570,-460.0,0.00018082,2]
[369050170,1751445064579,-460.0,0.00018082,2]
[369050171,1751445064589,-460.0,0.00018082,2]
[369050172,1751445064601,-801.86,0.00018082,2]
[369050173,1751445064610,-460.0,0.00018082,2]